fUSD/lending_fUSD_20260421
["ID","MTS","AMOUNT","RATE_DAILY","PERIOD"]
[420908573,1776711009729,500.0,8.219e-05,2]
[420908574,1776711009780,500.0,8.219e-05,2]
[420908575,1776711009906,500.0,8.219e-05,2]
[420908576,1776711009939,150.0,8.219e-05,2]
[420908577,1776711010064,500.0,8.219e-05,2]
[420908578,1776711010098,150.0,8.219e-05,2]
[420908579,1776711010975,500.0,8.219e-05,2]
[420908580,1776711011141,500.0,8.219e-05,2]
[420908581,1776711011337,500.0,8.219e-05,2]
[420908582,1776711011516,500.0,8.219e-05,2]
[420908583,1776711011671,500.0,8.219e-05,2]
[420908584,1776711011842,500.0,8.219e-05,2]
[420908585,1776711011996,318.08398124,8.219e-05,2]
[420908586,1776711012159,150.0,8.219e-05,2]
[420908587,1776711016249,200.0,8.219e-05,2]
[420908588,1776711017947,150.0,8.219e-05,2]
[420908589,1776711018144,150.0,8.219e-05,2]
[420908590,1776711018352,150.0,8.219e-05,2]
[420908591,1776711018545,150.0,8.219e-05,2]
[420908592,1776711022326,150.0,8.219e-05,2]
[420908593,1776711022382,182.4399254,8.219e-05,2]
[420908594,1776711022419,500.0,8.219e-05,2]
[420908595,1776711022472,500.0,8.219e-05,2]
[420908596,1776711022520,500.0,8.219e-05,2]
[420908597,1776711022613,500.0,8.219e-05,2]
[420908598,1776711022726,275.1943306,8.219e-05,2]
[420908599,1776711022754,224.8056694,8.219e-05,2]
[420908600,1776711022809,500.0,8.219e-05,2]
[420908601,1776711022858,500.0,8.219e-05,2]
[420908602,1776711022905,500.0,8.219e-05,2]
[420908603,1776711022949,600.0,8.219e-05,2]
[420908606,1776711030900,165.6,7.904e-05,2]
[420908607,1776711031105,165.6,8.165e-05,2]
[420908612,1776711031497,-341.348914,8.288e-05,2]
[420908614,1776711031509,-158.651086,8.288e-05,2]
[420908616,1776711031519,-621.05125574,8.288e-05,2]
[420908617,1776711031528,-258.0,8.288e-05,2]
[420908618,1776711031538,-250.0,8.29e-05,2]
[420908619,1776711031548,-300.0,8.292e-05,2]
[420908620,1776711031557,-200.43,8.296e-05,2]
[420908621,1776711031566,-108060.86765815,8.31e-05,2]
[420908622,1776711031593,-35360.09685879,8.31e-05,2]
[420908623,1776711031604,-121723.0994152,8.31e-05,2]
[420908624,1776711031616,-1284.18884217,8.31e-05,2]
[420908625,1776711031767,-512.90085166,8.31e-05,2]
[420908626,1776711035147,2058.84,7.674e-05,2]
[420908630,1776711037580,-248.49480195,8.309e-05,2]
[420908631,1776711037590,-500.0,8.309e-05,2]
[420908632,1776711037599,-311.71936184,8.309e-05,2]
[420908633,1776711037609,-500.0,8.309e-05,2]
[420908634,1776711037619,-526.35935737,8.309e-05,2]
[420908635,1776711037628,-500.0,8.309e-05,2]
[420908636,1776711037638,-397.35917911,8.309e-05,2]
[420908637,1776711037648,-16484.75401632,8.31e-05,2]
[420908638,1776711037660,-785.46973321,8.31e-05,2]
[420908639,1776711037675,-1401.9124575,8.31e-05,2]
[420908640,1776711037686,-1057.47540344,8.31e-05,2]
[420908641,1776711037781,-22741.91826356,8.31e-05,2]
[420908642,1776711037791,-150.0,8.4e-05,2]
[420908643,1776711037801,-1200.0,8.407e-05,2]
[420908644,1776711037812,-300.0,8.408e-05,2]
[420908645,1776711037821,-154.0,8.409e-05,3]
[420908646,1776711037831,-156.0,8.409e-05,3]
[420908647,1776711037842,-153.78868189,8.415e-05,2]
[420908648,1776711037852,-165.6,8.426e-05,2]
[420908649,1776711037862,-150.0,8.434e-05,2]
[420908650,1776711037872,-300.0,8.434e-05,2]
[420908651,1776711037882,-151.05521271,8.435e-05,2]
[420908652,1776711037892,-500.0,8.435e-05,2]
[420908653,1776711037901,-500.0,8.435e-05,2]
[420908654,1776711037911,-500.0,8.435e-05,2]
[420908655,1776711037921,-500.0,8.435e-05,2]
[420908656,1776711037931,-500.0,8.435e-05,2]
[420908657,1776711037941,-500.0,8.435e-05,2]
[420908658,1776711037951,-500.0,8.435e-05,2]
[420908659,1776711037961,-500.0,8.435e-05,2]
[420908660,1776711037970,-500.0,8.435e-05,2]
[420908661,1776711037980,-500.0,8.435e-05,2]
[420908662,1776711037990,-500.0,8.435e-05,2]
[420908663,1776711038000,-500.0,8.435e-05,2]
[420908664,1776711038009,-286.0,8.435e-05,2]
[420908665,1776711038019,-473.0,8.435e-05,2]
[420908666,1776711038028,-500.0,8.435e-05,2]
[420908667,1776711038037,-500.0,8.435e-05,2]
[420908668,1776711038047,-500.0,8.435e-05,2]
[420908669,1776711038057,-500.0,8.435e-05,2]
[420908670,1776711038066,-500.0,8.435e-05,2]
[420908671,1776711038076,-500.0,8.435e-05,2]
[420908672,1776711038085,-500.0,8.435e-05,2]
[420908673,1776711038095,-500.0,8.435e-05,2]
[420908674,1776711038105,-500.0,8.435e-05,2]
[420908675,1776711038114,-500.0,8.435e-05,2]
[420908677,1776711038124,-372.01730652,8.435e-05,2]
[420908678,1776711038134,-473.0,8.435e-05,2]
[420908679,1776711038143,-473.0,8.435e-05,2]
[420908680,1776711038152,-473.0,8.435e-05,2]
[420908681,1776711038162,-473.0,8.435e-05,2]
[420908682,1776711038172,-473.0,8.435e-05,2]
[420908683,1776711038182,-473.0,8.435e-05,2]
[420908684,1776711038191,-473.0,8.435e-05,2]
[420908685,1776711038201,-473.0,8.435e-05,2]
[420908686,1776711038210,-473.0,8.435e-05,2]
[420908687,1776711038220,-473.0,8.435e-05,2]
[420908688,1776711038229,-473.0,8.435e-05,2]
[420908689,1776711038239,-473.0,8.435e-05,2]
[420908690,1776711038249,-473.0,8.435e-05,2]
[420908691,1776711038258,-473.0,8.435e-05,2]
[420908692,1776711038268,-473.0,8.435e-05,2]
[420908693,1776711038278,-473.0,8.435e-05,2]
[420908694,1776711038288,-473.0,8.435e-05,2]
[420908695,1776711038297,-473.0,8.435e-05,2]
[420908696,1776711038307,-473.0,8.435e-05,2]
[420908697,1776711038316,-473.0,8.435e-05,2]
[420908698,1776711038325,-473.0,8.435e-05,2]
[420908699,1776711038335,-473.0,8.435e-05,2]
[420908700,1776711038345,-479.7611531,8.435e-05,2]
[420908701,1776711038355,-17436.98489165,8.5e-05,2]
[420908702,1776711038365,-151.0,8.508e-05,2]
[420908703,1776711038374,-152.0,8.511e-05,2]
[420908704,1776711038383,-167.0,8.511e-05,2]
[420908705,1776711038392,-150.0,8.526e-05,2]
[420908706,1776711038402,-500.54897623,8.543e-05,2]
[420908707,1776711038411,-500.0,8.543e-05,2]
[420908708,1776711038420,-500.0,8.543e-05,2]
[420908709,1776711038429,-500.0,8.543e-05,2]
[420908710,1776711038438,-500.0,8.543e-05,2]
[420908711,1776711038447,-500.0,8.543e-05,2]
[420908712,1776711038456,-570.93588124,8.543e-05,2]
[420908713,1776711038465,-500.0,8.543e-05,2]
[420908714,1776711038475,-4981.75357878,8.562e-05,2]
[420908715,1776711038487,-48993.48432967,8.562e-05,2]
[420908716,1776711038498,-1826.1386616,8.562e-05,2]
[420908717,1776711038509,-318.18399952,8.562e-05,2]
[420908718,1776711038520,-469.10245822,8.562e-05,2]
[420908719,1776711038546,-1000.18778537,8.562e-05,2]
[420908720,1776711038558,-865.69,8.562e-05,2]
[420908721,1776711038571,-11991.61838017,8.562e-05,2]
[420908773,1776711046552,-400.89,8.519e-05,2]
[420908774,1776711046562,-163220.29324917,8.562e-05,2]
[420908775,1776711046578,-432.9218685,8.562e-05,2]
[420908776,1776711046588,-558.11147196,8.562e-05,2]
[420908777,1776711046600,-2989.81943609,8.562e-05,2]
[420908778,1776711046612,-14637.31840052,8.562e-05,2]
[420908779,1776711046634,-1323.12656741,8.562e-05,2]
[420908780,1776711046678,-102629.42592126,8.562e-05,2]
[420908781,1776711046691,-26306.40768696,8.562e-05,2]
[420908782,1776711046701,-14070.0552952,8.562e-05,2]
[420908783,1776711046711,-151.0,8.562e-05,2]
[420908784,1776711046722,-2013.04501905,8.562e-05,2]
[420908785,1776711046769,-434.23709192,8.562e-05,2]
[420908786,1776711046781,-954.67114887,8.562e-05,2]
[420908787,1776711046794,-1480.91707797,8.562e-05,2]
[420908788,1776711046806,-313.55250579,8.562e-05,2]
[420908789,1776711046816,-153.78868188,8.562e-05,2]
[420908790,1776711046827,-5044.25880699,8.562e-05,2]
[420908791,1776711046843,-15560.062563,8.562e-05,2]
[420908792,1776711046859,-9556.04266545,8.562e-05,2]
[420908793,1776711046882,-1170.36,8.562e-05,2]
[420908794,1776711046897,-336.11448612,8.562e-05,2]
[420908795,1776711063850,150.0,8.22e-05,2]
[420908796,1776711078861,579.94622367,6.385e-05,2]
[420908797,1776711126242,156.0,6.385e-05,3]
[420908798,1776711189232,177.0,6.385e-05,3]
[420908799,1776711190856,157.0,6.385e-05,3]
[420908800,1776711196724,150.0,8.22e-05,2]
[420908801,1776711220482,2000.0,8.219e-05,2]
[420908802,1776711247020,182.0,8.219e-05,3]
[420908803,1776711310798,154.0,8.219e-05,3]
[420908804,1776711311568,173.0,8.219e-05,3]
[420908805,1776711329777,500.0,7.731e-05,2]
[420908806,1776711368806,164.0,8.219e-05,3]
[420908807,1776711428825,156.0,8.219e-05,3]
[420908808,1776711468023,150.0,8.22e-05,2]
[420908809,1776711472200,8857.01,7.709e-05,2]
[420908810,1776711472224,10000.01,7.709e-05,2]
[420908811,1776711472248,4595.3,7.709e-05,2]
[420908812,1776711484950,180.0,8.219e-05,3]
[420908813,1776711491091,158.0,8.219e-05,3]
[420908816,1776711530890,200.0,7.669e-05,2]
[420908817,1776711536173,150.0,8.22e-05,2]
[420908818,1776711545711,171.0,8.219e-05,3]
[420908819,1776711549199,4545.71,8.178e-05,2]
[420908820,1776711549222,954.3,8.178e-05,2]
[420908821,1776711609207,153.0,8.219e-05,3]
[420908822,1776711633361,500.0,8.208e-05,2]
[420908825,1776711658714,150.0,8.22e-05,2]
[420908826,1776711666496,162.0,8.219e-05,3]
[420908831,1776711724501,150.0,8.22e-05,2]
[420908832,1776711726152,154.0,8.219e-05,3]
[420908834,1776711791338,154.0,8.219e-05,3]
[420908835,1776711794758,479.4968,8.188e-05,2]
[420908836,1776711848311,154.0,8.219e-05,3]
[420908837,1776711862598,150.0,8.22e-05,2]
[420908839,1776711931708,150.0,8.22e-05,2]
[420908840,1776711969500,154.0,8.219e-05,3]
[420908841,1776711987440,449.0,8.219e-05,2]
[420908842,1776711987597,449.0,8.219e-05,2]
[420908843,1776711987762,449.0,8.219e-05,2]
[420908844,1776711987935,449.0,8.219e-05,2]
[420908845,1776711988103,449.0,8.219e-05,2]
[420908846,1776711988264,449.0,8.219e-05,2]
[420908847,1776711988423,449.0,8.219e-05,2]
[420908848,1776711988576,449.0,8.219e-05,2]
[420908849,1776711988736,449.0,8.219e-05,2]
[420908850,1776711988894,449.0,8.219e-05,2]
[420908851,1776711989066,449.0,8.219e-05,2]
[420908852,1776711989228,449.0,8.219e-05,2]
[420908853,1776711989417,449.0,8.219e-05,2]
[420908854,1776711991278,449.0,8.219e-05,2]
[420908855,1776711991316,449.0,8.219e-05,2]
[420908856,1776711991353,449.0,8.219e-05,2]
[420908857,1776711991421,449.0,8.219e-05,2]
[420908858,1776711991513,449.0,8.219e-05,2]
[420908859,1776711992198,449.0,8.219e-05,2]
[420908860,1776711993565,227.5132,8.219e-05,2]
[420908861,1776711993594,221.4868,8.219e-05,2]
[420908862,1776711995316,449.0,8.219e-05,2]
[420908863,1776711997325,449.0,8.219e-05,2]
[420908864,1776711999792,449.0,8.219e-05,2]
[420908865,1776712003269,466.9906714,8.219e-05,2]
[420908866,1776712026585,152.0,8.204e-05,7]
[420908867,1776712029939,154.0,8.219e-05,3]
[420908868,1776712045113,150.0,8.219e-05,2]
[420908869,1776712045307,282.14556383,8.219e-05,2]
[420908870,1776712045457,500.0,8.219e-05,2]
[420908871,1776712045492,150.0,8.219e-05,2]
[420908872,1776712045618,500.0,8.219e-05,2]
[420908873,1776712045845,500.0,8.219e-05,2]
[420908874,1776712045936,150.0,8.219e-05,2]
[420908875,1776712046025,500.0,8.219e-05,2]
[420908876,1776712046086,500.0,8.219e-05,2]
[420908877,1776712046119,500.0,8.219e-05,2]
[420908878,1776712046149,178.88867744,8.219e-05,2]
[420908879,1776712046195,500.0,8.219e-05,2]
[420908880,1776712046324,500.0,8.219e-05,2]
[420908881,1776712046354,500.0,8.219e-05,2]
[420908882,1776712046404,500.0,8.219e-05,2]
[420908883,1776712046449,500.0,8.219e-05,2]
[420908884,1776712046478,500.0,8.219e-05,2]
[420908885,1776712046507,500.0,8.219e-05,2]
[420908886,1776712046628,247.49828733,8.219e-05,2]
[420908887,1776712046650,252.50171267,8.219e-05,2]
[420908888,1776712046687,500.0,8.219e-05,2]
[420908889,1776712046716,500.0,8.219e-05,2]
[420908890,1776712046827,500.0,8.219e-05,2]
[420908891,1776712046859,500.0,8.219e-05,2]
[420908892,1776712046887,500.0,8.219e-05,2]
[420908893,1776712046974,500.0,8.219e-05,2]
[420908894,1776712047004,500.0,8.219e-05,2]
[420908895,1776712047034,500.0,8.219e-05,2]
[420908896,1776712047129,500.0,8.219e-05,2]
[420908897,1776712047168,500.0,8.219e-05,2]
[420908898,1776712047206,591.74409425,8.219e-05,2]
[420908899,1776712047358,500.0,8.219e-05,2]
[420908900,1776712047396,291.23744194,8.219e-05,2]
[420908901,1776712047426,150.0,8.219e-05,2]
[420908902,1776712047489,500.0,8.219e-05,2]
[420908903,1776712047611,500.0,8.219e-05,2]
[420908904,1776712047758,500.0,8.219e-05,2]
[420908905,1776712048070,500.0,8.219e-05,2]
[420908906,1776712050104,500.0,8.219e-05,2]
[420908907,1776712050171,500.0,8.219e-05,2]
[420908908,1776712050267,214.52675114,8.219e-05,2]
[420908909,1776712050289,285.47324886,8.219e-05,2]
[420908910,1776712050388,500.0,8.219e-05,2]
[420908911,1776712050510,350.0,8.219e-05,2]
[420908912,1776712050621,718.0,8.219e-05,2]
[420908913,1776712051218,718.0,8.219e-05,2]
[420908914,1776712051267,150.0,8.219e-05,2]
[420908915,1776712051313,718.0,8.219e-05,2]
[420908916,1776712051465,718.0,8.219e-05,2]
[420908917,1776712051531,718.0,8.219e-05,2]
[420908918,1776712051648,718.0,8.219e-05,2]
[420908919,1776712051709,718.0,8.219e-05,2]
[420908920,1776712051784,718.0,8.219e-05,2]
[420908921,1776712051851,718.0,8.219e-05,2]
[420908922,1776712051910,718.0,8.219e-05,2]
[420908923,1776712051971,718.0,8.219e-05,2]
[420908924,1776712052040,718.0,8.219e-05,2]
[420908925,1776712052173,98.53675114,8.219e-05,2]
[420908926,1776712052197,619.46324886,8.219e-05,2]
[420908927,1776712052264,718.0,8.219e-05,2]
[420908928,1776712052319,718.0,8.219e-05,2]
[420908929,1776712052405,718.0,8.219e-05,2]
[420908930,1776712053174,718.0,8.219e-05,2]
[420908931,1776712053943,718.0,8.219e-05,2]
[420908932,1776712055000,718.0,8.219e-05,2]
[420908933,1776712056385,718.0,8.219e-05,2]
[420908934,1776712058036,718.0,8.219e-05,2]
[420908935,1776712061647,718.0,8.219e-05,2]
[420908936,1776712062554,718.0,8.219e-05,2]
[420908937,1776712064819,732.14193434,8.219e-05,2]
[420908938,1776712078771,150.0,8.22e-05,2]
[420908939,1776712089281,154.0,8.219e-05,3]
[420908940,1776712090569,500.0,8.219e-05,2]
[420908941,1776712090797,500.0,8.219e-05,2]
[420908942,1776712090956,500.0,8.219e-05,2]
[420908943,1776712091139,500.0,8.219e-05,2]
[420908944,1776712091296,500.0,8.219e-05,2]
[420908945,1776712091468,500.0,8.219e-05,2]
[420908946,1776712091626,257.0,8.219e-05,2]
[420908947,1776712091657,500.0,8.219e-05,2]
[420908948,1776712091816,500.0,8.219e-05,2]
[420908949,1776712091970,500.0,8.219e-05,2]
[420908950,1776712092131,500.0,8.219e-05,2]
[420908951,1776712092285,500.0,8.219e-05,2]
[420908952,1776712092439,235.36257079,8.219e-05,2]
[420908953,1776712101945,99.50549487,8.219e-05,2]
[420908954,1776712101976,400.49450513,8.219e-05,2]
[420908955,1776712102128,500.0,8.219e-05,2]
[420908956,1776712102258,500.0,8.219e-05,2]
[420908957,1776712102420,500.0,8.219e-05,2]
[420908958,1776712102578,500.0,8.219e-05,2]
[420908959,1776712102756,500.0,8.219e-05,2]
[420908960,1776712102897,500.0,8.219e-05,2]
[420908961,1776712103053,500.0,8.219e-05,2]
[420908962,1776712103372,500.0,8.219e-05,2]
[420908963,1776712103472,500.0,8.219e-05,2]
[420908964,1776712103532,372.01730652,8.219e-05,2]
[420908965,1776712104350,500.0,8.219e-05,2]
[420908966,1776712104692,500.0,8.219e-05,2]
[420908967,1776712104853,500.0,8.219e-05,2]
[420908968,1776712106707,500.0,8.219e-05,2]
[420908969,1776712106754,500.0,8.219e-05,2]
[420908970,1776712106818,500.0,8.219e-05,2]
[420908971,1776712106860,500.0,8.219e-05,2]
[420908972,1776712106903,500.0,8.219e-05,2]
[420908973,1776712106963,500.0,8.219e-05,2]
[420908974,1776712107067,227.49818835,8.219e-05,2]
[420908975,1776712107091,272.50181165,8.219e-05,2]
[420908976,1776712107223,500.0,8.219e-05,2]
[420908977,1776712109005,176.0,8.219e-05,2]
[420908978,1776712146771,150.0,8.22e-05,2]
[420908979,1776712152134,154.0,8.219e-05,3]
[420908980,1776712192552,8747.50818835,8.184e-05,2]
[420908981,1776712192579,10000.01,8.184e-05,2]
[420908982,1776712192607,10000.01,8.184e-05,2]
[420908983,1776712192637,10000.01,8.184e-05,2]
[420908984,1776712192668,10000.01,8.184e-05,2]
[420908985,1776712192696,4971.82721165,8.184e-05,2]
[420908986,1776712210994,154.0,8.184e-05,3]
[420908987,1776712211505,154.0,8.184e-05,3]
[420909007,1776712232022,-300.0,8.234e-05,2]
[420909008,1776712232033,-1200.0,8.234e-05,2]
[420909009,1776712232043,-257.0,8.234e-05,2]
[420909010,1776712232054,-300.0,8.235e-05,2]
[420909011,1776712232065,-301.85689137,8.235e-05,2]
[420909012,1776712232075,-250.0,8.235e-05,2]
[420909013,1776712232086,-7503.3499,8.235e-05,2]
[420909014,1776712232097,-150.0,8.262e-05,2]
[420909015,1776712232107,-500.0,8.263e-05,2]
[420909016,1776712232117,-500.0,8.263e-05,2]
[420909017,1776712232127,-500.28503073,8.263e-05,2]
[420909018,1776712232137,-570.93588124,8.263e-05,2]
[420909019,1776712232148,-500.0,8.263e-05,2]
[420909020,1776712232159,-500.0,8.263e-05,2]
[420909021,1776712232170,-500.42337708,8.263e-05,2]
[420909022,1776712232180,-500.0,8.263e-05,2]
[420909023,1776712232191,-1000.0,8.283e-05,2]
[420909024,1776712232209,-151.0,8.283e-05,2]
[420909025,1776712232223,-209.40437684,8.283e-05,2]
[420909026,1776712232234,-174.61919141,8.283e-05,2]
[420909027,1776712232245,-235.75327194,8.283e-05,2]
[420909028,1776712232255,-244.476143,8.283e-05,2]
[420909029,1776712232266,-253.52176029,8.283e-05,2]
[420909030,1776712232276,-225.60716926,8.283e-05,2]
[420909031,1776712232287,-262.90206542,8.283e-05,2]
[420909032,1776712232297,-272.62944185,8.283e-05,2]
[420909033,1776712232308,-282.71673119,8.283e-05,2]
[420909034,1776712232318,-293.17725025,8.283e-05,2]
[420909035,1776712232329,-304.02480851,8.283e-05,2]
[420909036,1776712232340,-315.27372642,8.283e-05,2]
[420909037,1776712232350,-326.9388543,8.283e-05,2]
[420909038,1776712232361,-339.03559191,8.283e-05,2]
[420909039,1776712232371,-500.0,8.287e-05,2]
[420909040,1776712232382,-500.0,8.287e-05,2]
[420909041,1776712232393,-500.0,8.287e-05,2]
[420909042,1776712232403,-500.0,8.287e-05,2]
[420909043,1776712232413,-500.0,8.287e-05,2]
[420909044,1776712232424,-500.0,8.287e-05,2]
[420909045,1776712232434,-500.0,8.287e-05,2]
[420909046,1776712232445,-500.0,8.287e-05,2]
[420909047,1776712232456,-493.85917917,8.287e-05,2]
[420909048,1776712232466,-500.0,8.287e-05,2]
[420909049,1776712232477,-938.0,8.288e-05,2]
[420909050,1776712232488,-938.0,8.288e-05,2]
[420909051,1776712232498,-938.0,8.288e-05,2]
[420909052,1776712232509,-938.0,8.288e-05,2]
[420909053,1776712232519,-938.0,8.288e-05,2]
[420909054,1776712232529,-938.0,8.288e-05,2]
[420909055,1776712232540,-938.0,8.288e-05,2]
[420909056,1776712232551,-938.0,8.288e-05,2]
[420909057,1776712232562,-938.0,8.288e-05,2]
[420909058,1776712232572,-938.0,8.288e-05,2]
[420909059,1776712232582,-938.0,8.288e-05,2]
[420909060,1776712232593,-938.0,8.288e-05,2]
[420909061,1776712232604,-938.0,8.288e-05,2]
[420909062,1776712232614,-938.0,8.288e-05,2]
[420909063,1776712232625,-938.0,8.288e-05,2]
[420909064,1776712232635,-938.0,8.288e-05,2]
[420909065,1776712232652,-938.0,8.288e-05,2]
[420909066,1776712232663,-938.0,8.288e-05,2]
[420909067,1776712232673,-938.0,8.288e-05,2]
[420909068,1776712232684,-938.0,8.288e-05,2]
[420909069,1776712232695,-938.0,8.288e-05,2]
[420909070,1776712232706,-938.0,8.288e-05,2]
[420909071,1776712232717,-938.0,8.288e-05,2]
[420909072,1776712232728,-958.41903347,8.288e-05,2]
[420909073,1776712232740,-150.0,8.288e-05,2]
[420909074,1776712232750,-150.0,8.288e-05,2]
[420909075,1776712232761,-150.0,8.288e-05,2]
[420909076,1776712232772,-150.0,8.288e-05,2]
[420909077,1776712232783,-150.0,8.288e-05,2]
[420909078,1776712232793,-158.29578575,8.288e-05,2]
[420909079,1776712232804,-749.0,8.288e-05,2]
[420909080,1776712232814,-500.0,8.288e-05,2]
[420909081,1776712232825,-150.0,8.288e-05,2]
[420909082,1776712232835,-749.0,8.288e-05,2]
[420909083,1776712232846,-500.0,8.288e-05,2]
[420909084,1776712232857,-584.34269495,8.288e-05,2]
[420909085,1776712232867,-749.0,8.288e-05,2]
[420909086,1776712232878,-500.0,8.288e-05,2]
[420909087,1776712232888,-500.0,8.288e-05,2]
[420909088,1776712232899,-749.0,8.288e-05,2]
[420909089,1776712232909,-500.0,8.288e-05,2]
[420909090,1776712232919,-749.0,8.288e-05,2]
[420909091,1776712232930,-500.0,8.288e-05,2]
[420909092,1776712232941,-749.0,8.288e-05,2]
[420909093,1776712232951,-500.0,8.288e-05,2]
[420909094,1776712232963,-749.0,8.288e-05,2]
[420909095,1776712232973,-500.0,8.288e-05,2]
[420909096,1776712232984,-500.0,8.288e-05,2]
[420909097,1776712232994,-749.0,8.288e-05,2]
[420909098,1776712233004,-500.0,8.288e-05,2]
[420909099,1776712233015,-749.0,8.288e-05,2]
[420909100,1776712233025,-500.0,8.288e-05,2]
[420909101,1776712233036,-749.0,8.288e-05,2]
[420909102,1776712233046,-363.84800281,8.288e-05,2]
[420909103,1776712233057,-749.0,8.288e-05,2]
[420909104,1776712233067,-749.0,8.288e-05,2]
[420909105,1776712233078,-749.0,8.288e-05,2]
[420909106,1776712233093,-749.0,8.288e-05,2]
[420909107,1776712233104,-749.0,8.288e-05,2]
[420909108,1776712233114,-749.0,8.288e-05,2]
[420909109,1776712233125,-749.0,8.288e-05,2]
[420909110,1776712233135,-784.0,8.288e-05,2]
[420909111,1776712233146,-784.0,8.288e-05,2]
[420909112,1776712233157,-784.0,8.288e-05,2]
[420909113,1776712233168,-749.0,8.288e-05,2]
[420909114,1776712233178,-749.0,8.288e-05,2]
[420909115,1776712233189,-749.0,8.288e-05,2]
[420909116,1776712233199,-749.0,8.288e-05,2]
[420909117,1776712233211,-749.0,8.288e-05,2]
[420909118,1776712233222,-500.0,8.288e-05,2]
[420909119,1776712233232,-500.0,8.288e-05,2]
[420909120,1776712233243,-500.0,8.288e-05,2]
[420909121,1776712233253,-500.0,8.288e-05,2]
[420909122,1776712233264,-500.0,8.288e-05,2]
[420909123,1776712233274,-500.0,8.288e-05,2]
[420909124,1776712233285,-500.0,8.288e-05,2]
[420909125,1776712233954,-749.0,8.288e-05,2]
[420909126,1776712233968,-500.0,8.288e-05,2]
[420909127,1776712233979,-500.0,8.288e-05,2]
[420909128,1776712233989,-500.0,8.288e-05,2]
[420909129,1776712233999,-500.0,8.288e-05,2]
[420909130,1776712234010,-500.0,8.288e-05,2]
[420909131,1776712234020,-500.0,8.288e-05,2]
[420909132,1776712234031,-500.0,8.288e-05,2]
[420909133,1776712234041,-500.0,8.288e-05,2]
[420909134,1776712234051,-500.0,8.288e-05,2]
[420909135,1776712234062,-500.0,8.288e-05,2]
[420909136,1776712234072,-749.26976104,8.288e-05,2]
[420909137,1776712234083,-500.0,8.288e-05,2]
[420909138,1776712234093,-500.0,8.288e-05,2]
[420909139,1776712234104,-500.0,8.288e-05,2]
[420909140,1776712234117,-500.0,8.288e-05,2]
[420909141,1776712234127,-500.0,8.288e-05,2]
[420909142,1776712234138,-500.0,8.288e-05,2]
[420909143,1776712234149,-784.0,8.288e-05,2]
[420909144,1776712234160,-500.0,8.288e-05,2]
[420909145,1776712234170,-220.17482528,8.288e-05,2]
[420909146,1776712234181,-784.0,8.288e-05,2]
[420909147,1776712234191,-784.0,8.288e-05,2]
[420909148,1776712234202,-161.46357839,8.288e-05,2]
[420909149,1776712234212,-784.0,8.288e-05,2]
[420909150,1776712234223,-784.0,8.288e-05,2]
[420909151,1776712234233,-784.0,8.288e-05,2]
[420909152,1776712234244,-500.0,8.288e-05,2]
[420909153,1776712234255,-500.0,8.288e-05,2]
[420909154,1776712234266,-784.0,8.288e-05,2]
[420909155,1776712234277,-500.0,8.288e-05,2]
[420909156,1776712234287,-784.0,8.288e-05,2]
[420909157,1776712234297,-500.0,8.288e-05,2]
[420909158,1776712234308,-1524.0,8.288e-05,2]
[420909159,1776712234318,-500.0,8.288e-05,2]
[420909160,1776712234329,-784.0,8.288e-05,2]
[420909161,1776712234341,-500.0,8.288e-05,2]
[420909162,1776712234351,-500.0,8.288e-05,2]
[420909163,1776712234362,-1524.0,8.288e-05,2]
[420909164,1776712234373,-784.0,8.288e-05,2]